bitfinex-derivatives/quotes_SOLF0:USTF0_20251210
["timestamp","ask_amount","ask_price","bid_price","bid_amount"]
[1765400049823,101.2553,138.23,138.12,61.2]
[1765400050023,101.2376,138.25,138.13,104.5499]
[1765400050234,0.05406111,138.2,138.18,0.05126926]
[1765400050431,0.05406111,138.2,138.08,292.4866]
[1765400050432,101.2929,138.18,138.08,3.23]
[1765400050631,101.2778,138.2,138.08,3.23]
[1765400050827,116.18310472,138.22,138.1,104.5753]
[1765400051029,101.2281,138.27,138.16,3.23]
[1765400051222,101.235,138.26,138.16,3.23]
[1765400051443,0.05234325,138.22,138.2,0.05422876]
[1765400052226,102.75554325,138.22,138.11,3.23]
[1765400052438,101.2636,138.22,138.11,3.23]
[1765400052631,101.3012,138.17,138.1,61.24]
[1765400052935,101.3139,138.15,138.03,3.23]
[1765400053132,101.3284,138.13,138.03,3.23]
[1765400053336,0.04969294,138.09,138.03,104.6253]
[1765400053524,0.04969294,138.09,138.0,162.6779]
[1765400053723,14.91990472,138.2,138.08,101.3555]
[1765400053932,0.05353619,138.15,138.07,162.6265]
[1765400054134,60.96,138.23,138.13,3.21]
[1765400054432,101.2139,138.29,138.18,101.2841]
[1765400054629,14.91990472,138.32,138.22,101.2547]
[1765400054832,162.1622,138.33,138.23,3.21]
[1765400055024,101.1982,138.31,138.19,107.7881]
[1765400055226,0.04671449,138.26,138.24,0.05385747]
[1765400055428,0.04871062,138.26,138.24,0.05385747]
[1765400056840,14.91990472,138.34,138.24,3.26385747]
[1765400057024,101.1499,138.37,138.25,3.21]
[1765400057228,122.56730472,138.38,138.25,104.4435]
[1765400057427,107.6474,138.38,138.26,104.4365]
[1765400057635,101.1533,138.37,138.27,3.21]
[1765400057834,101.1893,138.32,138.22,3.21]
[1765400058035,0.05474705,138.28,138.26,0.05113734]
[1765400058232,0.05397909,138.28,138.26,0.05113734]
[1765400058629,0.05397909,138.28,138.23,3.21]
[1765400058835,101.1713,138.35,138.25,3.21]
[1765400059030,101.1896,138.32,138.25,3.21]
[1765400059230,101.1821,138.33,138.25,3.21]
[1765400059427,101.1821,138.33,138.22,101.2556]
[1765400059632,101.2328,138.26,138.15,3.21]
[1765400059839,101.2669,138.21,138.19,0.05437312]
[1765400060034,101.211,138.29,138.19,3.25801178]
[1765400060233,101.2173,138.28,138.19,3.21]
[1765400060439,6.5075,138.27,138.19,3.21]
[1765400060627,101.2415,138.25,138.15,61.3]
[1765400060836,101.2415,138.25,138.1,116.26460472]
[1765400060837,6.5108,138.2,138.1,104.5555]
[1765400061038,0.04600283,138.16,138.14,0.05278164]
[1765400061238,0.04600283,138.16,138.14,3.26278164]
[1765400061543,101.35480283,138.16,138.14,0.05278164]
[1765400061731,101.326,138.13,138.03,3.21]
[1765400061937,101.3439,138.11,138.03,3.21]
[1765400062136,101.3664,138.08,138.0,61.3]
[1765400062441,101.4243,138.0,137.95,3.38211237]
[1765400062635,101.4383,137.98,137.95,3.38211237]
[1765400062936,101.4766,137.93,137.85,8.84708351]
[1765400063136,108.0085,137.92,137.85,8.84708351]
[1765400063340,162.5048,137.92,137.82,8.84708351]
[1765400063641,101.4902,137.91,137.8,3.21]
[1765400063850,61.02,137.92,137.82,3.21]
[1765400064138,61.04,137.94,137.82,104.759]
[1765400064345,101.4532,137.96,137.85,3.21]
[1765400064542,101.4465,137.97,137.86,3.21]
[1765400064749,107.9648,137.97,137.86,3.21]
[1765400065038,107.9648,137.97,137.79,101.5721]
[1765400065039,0.05071413,137.93,137.9,0.04599517]
[1765400065232,162.56271672,137.93,137.81,3.21]
[1765400065431,61.04,137.93,137.84,3.21]
[1765400065637,61.04,137.93,137.79,1.26201269]
[1765400065638,101.5218,137.87,137.79,1.26201269]
[1765400065839,177.47250472,137.88,137.75,104.8131]
[1765400066042,14.91990472,137.88,137.78,3.21]
[1765400066244,0.04802273,137.84,137.79,3.21]
[1765400067043,101.4912,137.91,137.8,3.26313915]
[1765400067231,101.5125,137.88,137.76,61.34]
[1765400067437,101.5125,137.88,137.77,3.21]
[1765400067638,116.42480472,137.89,137.77,3.21]
[1765400067842,116.42480472,137.89,137.79,3.21]
[1765400067843,14.91990472,137.89,137.79,3.21]
[1765400068049,14.91990472,137.93,137.84,3.21]
[1765400068246,101.4599,137.95,137.84,3.21]
[1765400068438,101.5429,137.84,137.73,3.21]
[1765400068639,101.5564,137.82,137.73,3.21]
[1765400068841,101.5564,137.82,137.65,14.91990472]
[1765400068842,101.6156,137.74,137.63,3.21]
[1765400069147,0.05396329,137.7,137.67,0.04880793]
[1765400069655,101.5331,137.85,137.72,104.8334]
[1765400069951,101.534,137.85,137.75,3.21]
[1765400070150,101.5051,137.89,137.69,101.6458]
[1765400070151,14.91990472,137.8,137.69,3.21]
[1765400070347,101.5589,137.82,137.71,3.21]
[1765400070540,0.05128935,137.78,137.75,0.05053385]
[1765400070744,101.5104,137.88,137.76,3.21]
[1765400071045,116.41950472,137.9,137.77,3.21]
[1765400071254,101.5341,137.85,137.72,104.8338]
[1765400071455,14.91990472,137.78,137.66,104.8759]
[1765400071749,0.05354842,137.73,137.71,0.04795886]
[1765400071949,0.05411795,137.73,137.71,0.04795886]
[1765400072250,204.76061795,137.73,137.71,0.04795886]
[1765400072447,0.05411795,137.73,137.71,0.04795886]
[1765400072641,0.05411795,137.73,137.71,3.25795886]
[1765400072843,0.05411795,137.73,137.71,0.04795886]
[1765400073148,101.5784,137.79,137.71,0.04795886]
[1765400073340,101.595,137.77,137.66,3.21]
[1765400073646,101.5861,137.78,137.63,101.69]
[1765400073647,14.91990472,137.75,137.63,101.69]
[1765400073843,14.91990472,137.75,137.63,104.9]
[1765400074045,0.05310382,137.7,137.68,0.05199635]
[1765400074350,0.0534658,137.7,137.68,0.05199635]
[1765400075049,101.6132,137.74,137.68,0.05199635]
[1765400075237,101.6304,137.72,137.62,3.16]
[1765400075441,101.6464,137.7,137.62,3.16]
[1765400075638,101.7111,137.61,137.51,3.16]
[1765400075839,101.7412,137.57,137.47,61.46]
[1765400076050,0.05525139,137.53,137.51,0.04596883]
[1765400076354,0.05525139,137.53,137.51,3.20596883]
[1765400076534,6.539,137.6,137.51,3.20596883]
[1765400076747,6.539,137.6,137.46,108.3612]
[1765400076748,101.7417,137.57,137.46,104.9756]
[1765400077039,101.7131,137.61,137.5,3.16]
[1765400077245,101.7131,137.61,137.49,101.7934]
[1765400077246,101.7301,137.59,137.46,104.9756]
[1765400077437,101.6975,137.63,137.51,101.7788]
[1765400077639,14.91990472,137.67,137.55,101.7488]
[1765400077841,123.09130472,137.71,137.57,104.8948]
[1765400078055,101.6273,137.72,137.62,3.16]
[1765400078244,101.6453,137.7,137.62,3.16]
[1765400078546,101.6596,137.68,137.59,3.16]
[1765400078848,101.6594,137.68,137.59,3.16]
[1765400079065,0.04840814,137.65,137.62,0.0515077]
[1765400079353,0.04840814,137.65,137.54,108.3003]
[1765400079354,6.5385,137.61,137.54,3.16]
[1765400079539,101.7045,137.62,137.54,3.16]
[1765400079941,108.2234,137.64,137.54,3.16]
[1765400080136,101.7122,137.61,137.54,3.16]
[1765400080336,0.05534,137.59,137.56,0.04938695]
[1765400080551,101.6907,137.64,137.55,3.16]
[1765400080748,101.6907,137.64,137.56,0.05239012]
[1765400080948,0.05137191,137.61,137.56,0.05239012]
[1765400081161,101.7286,137.59,137.56,0.05239012]
[1765400081450,101.76517191,137.61,137.56,3.21239012]
[1765400081451,0.05137191,137.61,137.56,3.21239012]
[1765400081749,108.1334,137.76,137.66,3.16]
[1765400081953,101.5805,137.79,137.67,3.16]
[1765400081954,101.5887,137.78,137.67,3.16]
[1765400082142,101.5704,137.8,137.68,104.8156]
[1765400082344,101.5933,137.77,137.69,3.16]
[1765400082539,101.6331,137.72,137.63,61.54]
[1765400082743,108.1417,137.75,137.63,172.9244]
[1765400082943,101.6105,137.75,137.64,3.16]
[1765400083149,101.5849,137.78,137.66,101.6693]
[1765400083353,101.6472,137.7,137.6,64.7]
[1765400083651,0.04933276,137.66,137.64,0.04568917]
[1765400085054,101.72393276,137.66,137.64,0.04568917]
[1765400085258,101.7483,137.56,137.48,3.16]
[1765400085566,101.7944,137.5,137.37,61.54]
[1765400085852,101.8116,137.48,137.37,163.4251]
[1765400086056,101.7777,137.52,137.41,101.853]
[1765400086247,0.04991425,137.48,137.45,0.05022018]
[1765400086449,101.8129,137.47,137.45,0.05022018]
[1765400086651,101.8372,137.44,137.31,101.9259]
[1765400086958,101.8236,137.46,137.34,101.9043]
[1765400087258,101.8061,137.48,137.37,163.4394]
[1765400087462,101.8294,137.45,137.36,3.16002242]
[1765400087657,0.0511314,137.42,137.39,0.04605623]
[1765400088349,101.7122,137.61,137.48,104.9641]
[1765400088552,101.7079,137.62,137.5,104.9489]
[1765400088752,203.3345,137.67,137.54,104.9166]
[1765400088952,101.6748,137.66,137.55,3.16]
[1765400089253,0.05165738,137.62,137.59,0.04780933]
[1765400089459,0.05061818,137.62,137.59,3.2152082]
[1765400089654,101.6308,137.72,137.6,64.74]
[1765400089955,101.6154,137.74,137.61,104.8667]
[1765400090163,101.6299,137.72,137.61,9.6983]
[1765400090457,203.144,137.8,137.69,3.16]
[1765400090761,26.29783807,137.85,137.73,3.20969265]
[1765400090762,0.04776514,137.76,137.73,3.20969265]
[1765400090965,101.5282,137.86,137.73,104.7759]
[1765400091259,101.5119,137.88,137.76,101.5939]
[1765400091458,101.5016,137.9,137.77,166.3257]
[1765400091659,101.5049,137.89,137.77,166.3257]
[1765400091844,101.4996,137.9,137.79,3.16]
[1765400092052,0.04717588,137.84,137.82,0.04783836]
[1765400092255,0.05462593,137.84,137.82,0.04824831]
[1765400092449,0.05462593,137.84,137.82,3.20824831]
[1765400092954,0.05462593,137.84,137.82,61.62824831]
[1765400093154,101.4576,137.95,137.83,3.16]
[1765400093458,13.0317,138.09,137.83,3.16]
[1765400093459,101.431,137.99,137.85,104.686]
[1765400093658,101.4364,137.98,137.85,104.686]
[1765400094071,101.4145,138.01,137.88,104.6631]
[1765400094269,202.9292,137.95,137.93,0.05089932]
[1765400094457,107.9869,137.95,137.86,61.56]
[1765400094958,107.9508,137.99,137.86,64.72]
[1765400095160,107.9508,137.99,137.86,166.24]
[1765400095360,0.05276196,137.94,137.91,0.04745051]
[1765400095659,101.51843684,137.94,137.91,0.04829616]
[1765400095859,101.51843684,137.94,137.81,104.72]
[1765400095860,101.4901,137.91,137.81,3.16]
[1765400096058,127.77993807,137.92,137.82,61.54]
[1765400096760,0.04858306,137.88,137.86,0.05286181]
[1765400097855,0.04858306,137.88,137.77,3.16]
[1765400098066,127.77353807,137.93,137.79,3.16]
[1765400098257,26.29783807,137.92,137.81,3.16]
[1765400098658,101.4913,137.91,137.82,61.54]
[1765400098854,0.05286191,137.88,137.85,0.04861964]
[1765400099065,0.05148961,137.88,137.85,3.2077975]
[1765400099561,101.4315,137.99,137.87,3.16]
[1765400099868,101.4315,137.99,137.86,61.54]
[1765400099869,101.4316,137.99,137.88,3.16]
[1765400100163,127.71303807,138.01,137.89,3.16]
[1765400100164,26.29783807,138.01,137.89,3.16]
[1765400100368,101.3784,138.06,137.93,3.16]
[1765400100665,0.05553835,138.01,137.98,0.05029489]
[1765400100853,101.47320733,138.01,137.98,0.05176792]
[1765400101059,0.05470733,138.01,137.93,61.52]
[1765400101364,101.3506,138.1,137.97,3.16]
[1765400101558,101.3222,138.14,138.0,3.16]
[1765400101867,101.3115,138.15,138.03,3.16]
[1765400102052,0.05480196,138.1,138.08,0.05358984]
[1765400102259,0.04861579,138.1,138.08,0.05358984]
[1765400102555,101.2638,138.22,138.09,64.68]
[1765400102762,101.2667,138.21,138.1,3.16]
[1765400102957,101.277,138.2,138.1,3.16]
[1765400103256,101.255,138.23,138.11,3.16]
[1765400103456,0.0475971,138.18,138.16,0.05080604]
[1765400103656,101.3147,138.15,138.05,3.16]
[1765400103860,101.3212,138.14,138.06,61.5]
[1765400104158,101.3396,138.12,138.04,3.11]
[1765400104360,101.3148,138.15,138.02,64.61]
[1765400104661,0.05276714,138.1,138.08,3.11]
[1765400104863,0.05135116,138.1,138.08,3.16358021]
[1765400105055,101.2707,138.21,138.09,64.61]
[1765400105261,6.5109,138.19,138.1,61.48]
[1765400105463,101.2602,138.22,138.11,3.11]
[1765400105664,127.51613807,138.28,138.15,3.11]
[1765400105857,101.2316,138.26,138.16,3.11]
[1765400106168,0.05106436,138.22,138.2,0.0515499]
[1765400106372,0.05106436,138.22,138.2,3.1615499]
[1765400106667,101.1668,138.35,138.23,3.11]
[1765400106870,9.93134486,138.37,138.25,3.11]
[1765400107065,3.42854486,138.37,138.28,3.11]
[1765400107264,3.42854486,138.37,138.26,101.2273]
[1765400107265,101.1846,138.33,138.22,3.11]
[1765400107465,101.1846,138.33,138.18,101.2872]
[1765400107466,101.1976,138.31,138.23,61.46]
[1765400107764,101.1976,138.31,138.17,104.403]
[1765400107765,0.04651443,138.27,138.24,0.05106432]
[1765400108371,101.2308,138.26,138.17,64.55]
[1765400108666,107.7384,138.26,138.17,64.55]
[1765400108968,101.313,138.15,138.06,3.11]
[1765400109171,6.5128,138.15,138.06,3.11]
[1765400109365,0.04775239,138.12,138.09,3.15578836]
[1765400109668,101.2989,138.17,138.09,3.11]
[1765400109872,101.2926,138.18,138.09,64.55]
[1765400110062,101.2779,138.2,138.1,61.42]
[1765400110262,101.2779,138.2,138.09,3.11]
[1765400110459,0.05345243,138.16,138.14,3.24]
[1765400110772,0.04800087,138.16,138.14,0.05018544]
[1765400111066,101.256,138.23,138.14,3.29018544]
[1765400111067,101.2562,138.23,138.14,3.29018544]
[1765400111367,101.2628,138.22,138.15,61.42]
[1765400111566,101.2628,138.22,138.14,61.42]
[1765400111775,101.2753,138.2,138.1,3.24]
[1765400111960,0.05459383,138.16,138.14,0.05284505]
[1765400112265,0.04932656,138.16,138.14,3.29284505]
[1765400112564,101.2476,138.24,138.15,64.66]
[1765400112768,101.2622,138.22,138.16,61.42]
[1765400112965,101.2769,138.2,138.08,3.24]
[1765400113165,101.2942,138.18,138.08,3.24]
[1765400113371,101.2942,138.18,138.09,61.4]
[1765400113569,0.0532758,138.15,138.12,0.05449722]
[1765400113865,0.0532758,138.15,138.12,3.29449722]
[1765400114067,101.2555,138.23,138.12,3.29449722]
[1765400114068,127.54013807,138.25,138.13,3.24]
[1765400114260,107.7563,138.24,138.13,3.24]
[1765400114461,101.2696,138.21,138.13,3.24]
[1765400114770,101.2622,138.22,138.13,61.4]
[1765400114968,0.05294137,138.19,138.16,0.05460105]
[1765400115363,107.8042,138.18,138.16,0.05460105]
[1765400115674,209.0967,138.18,138.16,0.00324989]
[1765400115964,0.05294137,138.19,138.16,0.00324989]
[1765400116668,209.0954,138.18,138.16,0.00324989]
[1765400117071,0.05294137,138.19,138.16,0.00324989]
[1765400117569,0.05294137,138.19,138.16,3.24324989]
[1765400117870,101.2472,138.24,138.16,3.24324989]
[1765400118063,101.2472,138.24,138.16,3.24]
[1765400118571,101.2688,138.21,138.05,101.3816]
[1765400118873,101.3861,138.05,137.92,101.4749]
[1765400119075,101.4041,138.03,137.93,3.24]
[1765400119259,101.3971,138.04,137.93,3.24]
[1765400119567,101.3848,138.05,137.96,3.24]
[1765400119873,0.05235506,138.02,137.99,3.28619685]
[1765400120067,0.04707766,138.02,137.99,3.29252421]
[1765400120265,101.3507,138.1,138.0,3.24]
[1765400120571,101.3077,138.16,138.04,3.24]
[1765400120877,101.3077,138.16,138.06,3.24]
[1765400121068,101.2925,138.18,138.07,3.24]
[1765400121269,101.3107,138.15,138.07,3.24]
[1765400121573,0.0536882,138.14,138.11,3.29530116]
[1765400122463,0.0536882,138.14,138.0,101.4174]
[1765400122464,101.3565,138.09,137.97,104.6824]
[1765400122666,101.3523,138.1,137.98,104.6743]
[1765400122872,101.3631,138.08,137.99,3.24]
[1765400123169,101.3593,138.09,137.99,3.24]
[1765400123359,0.05235752,138.05,138.03,0.05032656]
[1765400123771,101.43925752,138.05,138.03,0.05032656]
[1765400123972,0.05235752,138.05,138.03,0.05032656]
[1765400126078,101.3203,138.14,138.03,3.29032656]
[1765400126277,127.61083807,138.15,138.03,3.24]
[1765400126571,162.4358,138.18,138.05,101.384]
[1765400126763,101.2758,138.2,138.07,104.6092]
[1765400126764,26.29783807,138.19,138.07,104.6092]
[1765400126960,0.05375247,138.14,138.12,0.05582716]
[1765400128377,0.05375247,138.14,138.12,3.29582716]
[1765400128579,26.29783807,138.23,138.13,104.5646]
[1765400128580,6.5091,138.23,138.13,104.5646]
[1765400128781,101.2309,138.26,138.13,104.5646]
[1765400129070,26.29783807,138.27,138.16,6.512]
[1765400129269,101.2186,138.28,138.16,162.7025]
[1765400129575,0.04878176,138.23,138.21,0.04863917]
[1765400129766,0.04841149,138.23,138.21,0.05481373]
[1765400132267,6.55751149,138.23,138.21,0.05481373]
[1765400132781,6.5106,138.2,138.13,61.38]
[1765400133174,101.2741,138.2,138.13,61.38]
[1765400133377,101.2741,138.2,138.07,101.3649]
[1765400133378,6.5117,138.18,138.07,104.6049]
[1765400133573,6.5117,138.18,138.09,64.62]
[1765400133881,0.04796148,138.15,138.12,3.29421266]
[1765400134781,0.04796148,138.15,138.12,3.13421266]
[1765400134976,6.5086,138.24,138.14,6.5133]
[1765400135176,101.2622,138.22,138.13,3.08]
[1765400135375,127.54253807,138.24,138.13,3.08]
[1765400135580,101.2447,138.24,138.13,3.08]
[1765400136076,0.05099513,138.2,138.17,0.05431573]
[1765400137072,101.1849,138.33,138.21,3.08]
[1765400137272,130.87968293,138.37,138.24,104.3246]
[1765400137479,101.1582,138.36,138.25,3.08]
[1765400137679,101.202,138.3,138.2,3.08]
[1765400137977,101.1987,138.31,138.2,3.08]
[1765400138178,127.47943807,138.33,138.24,0.04833225]
[1765400138179,0.05009691,138.26,138.24,0.04833225]
[1765400138379,0.05009691,138.26,138.24,0.05107088]
[1765400138380,0.05244966,138.26,138.24,0.05107088]
[1765400138768,0.05244966,138.26,138.24,3.13107088]
[1765400139279,101.1756,138.34,138.24,3.13107088]
[1765400139474,101.1756,138.34,138.24,3.08]
[1765400139776,116.13996799,138.35,138.25,6.5079]
[1765400140072,116.13996799,138.35,138.24,3.08]
[1765400140073,101.1801,138.33,138.24,3.08]
[1765400140280,6.5049,138.32,138.27,0.05113226]
[1765400140679,14.97266799,138.35,138.27,0.05113226]
[1765400141079,6.5046,138.33,138.27,0.05113226]
[1765400141281,101.1739,138.34,138.27,0.05113226]
[1765400141478,101.1868,138.32,138.27,0.05113226]
[1765400141875,101.1938,138.31,138.27,0.05113226]
[1765400142079,101.1886,138.32,138.27,0.05113226]
[1765400142281,101.1824,138.33,138.27,0.05113226]
[1765400142282,6.506,138.3,138.27,0.05113226]
[1765400142780,101.1975,138.31,138.27,0.05113226]
[1765400143184,6.5066,138.29,138.27,0.05113226]
[1765400143994,6.5055,138.31,138.27,0.05113226]
[1765400144783,101.1974,138.31,138.27,0.05113226]
[1765400145192,6.5064,138.29,138.27,0.05113226]
[1765400146386,101.2309,138.26,138.15,64.42]
[1765400146582,101.2309,138.26,138.16,3.08]
[1765400146891,101.2155,138.28,138.17,3.08]
[1765400147278,0.04938861,138.24,138.21,0.05183165]
[1765400148487,6.5092,138.23,138.21,0.05183165]
[1765400149981,101.29698861,138.24,138.12,70.77844662]
[1765400150178,101.2671,138.21,138.12,64.42]
[1765400150386,101.2671,138.21,138.07,101.3665]
[1765400150387,101.3034,138.16,138.07,3.08]
[1765400150790,101.2965,138.17,138.07,3.08]
[1765400150994,101.2965,138.17,138.11,0.0538494]
[1765400151183,0.05520538,138.13,138.11,0.0538494]
[1765400151395,0.04695189,138.13,138.11,3.1338494]
[1765400152293,0.04695189,138.13,138.11,0.0538494]
[1765400153095,0.04695189,138.13,138.11,3.1338494]
[1765400153289,14.97266799,138.19,138.11,3.1338494]
[1765400153490,116.22696799,138.23,138.12,3.08]
[1765400153685,101.2465,138.24,138.12,3.08]
[1765400154000,6.5101,138.21,138.14,6.513]
[1765400154293,0.04729478,138.19,138.16,0.054809]
[1765400156482,101.32989478,138.19,138.16,0.054809]
[1765400156688,6.5139,138.13,138.07,3.08]
[1765400156891,101.3111,138.15,138.05,3.08]
[1765400157094,202.575,138.19,138.07,3.08]
[1765400157292,14.97266799,138.2,138.1,6.5149]
[1765400157494,14.97266799,138.2,138.1,3.08]
[1765400157698,0.05026514,138.16,138.14,0.05053552]
[1765400159495,6.56276514,138.16,138.14,0.05053552]
[1765400160203,0.05026514,138.16,138.14,0.05053552]
[1765400160414,0.05026514,138.16,138.14,3.13053552]
[1765400160708,101.2378,138.25,138.15,3.08]
[1765400160898,61.1,138.27,138.16,64.44]
[1765400161097,101.2597,138.22,138.14,6.35844662]
[1765400161300,101.2819,138.19,138.11,3.08]
[1765400161500,0.05274073,138.16,138.14,0.0486578]
[1765400162908,101.249,138.24,138.14,0.0486578]
[1765400162909,101.2631,138.22,138.14,4.5686578]
[1765400163106,101.2921,138.18,138.1,3.08]
[1765400163602,101.3255,138.13,138.05,3.08]
[1765400163810,101.3409,138.11,138.08,0.04924808]
[1765400164000,6.5159,138.09,138.08,0.04924808]
[1765400164207,101.3209,138.14,138.08,0.04924808]
[1765400164403,6.5154,138.1,138.08,0.04924808]
[1765400164607,101.364,138.08,138.01,3.08]
[1765400164801,101.3436,138.11,138.01,3.08]
[1765400165011,6.5159,138.09,138.01,3.08]
[1765400165605,0.04715136,138.06,138.04,0.04669743]
[1765400165808,61.1,138.15,138.05,3.08]
[1765400166201,101.2911,138.18,138.07,3.08]
[1765400166513,101.297,138.17,138.07,3.08]
[1765400166709,101.2911,138.18,138.11,0.04873734]
[1765400166909,6.5121,138.17,138.11,0.04873734]
[1765400167212,6.5121,138.17,138.13,0.05091231]
[1765400167408,101.2677,138.21,138.13,0.05091231]
[1765400167614,101.296,138.17,138.13,0.05091231]
[1765400168112,6.513,138.15,138.13,0.05091231]
[1765400168313,101.3211,138.14,138.05,3.08]
[1765400168513,6.5154,138.1,138.05,3.08]
[1765400168822,116.28366799,138.15,138.05,3.08]
[1765400169209,0.05101295,138.11,138.09,0.04610891]
[1765400170112,101.2729,138.21,138.09,4.59610891]
[1765400170410,101.2891,138.18,138.09,3.11]
[1765400170603,101.2814,138.19,138.09,3.11]
[1765400170802,101.2901,138.18,138.1,3.11]
[1765400171007,101.2857,138.19,138.04,12.9192578]
[1765400171008,101.3403,138.11,138.04,6.35844662]
[1765400171208,101.3403,138.11,138.06,0.054081]
[1765400171409,61.12,138.13,138.06,0.054081]
[1765400172014,6.5154,138.1,138.06,0.054081]
[1765400172217,101.3552,138.09,138.06,0.054081]
[1765400172404,101.3361,138.12,138.06,0.054081]
[1765400172905,101.3495,138.1,138.06,0.054081]
[1765400173108,101.3561,138.09,138.06,0.054081]
[1765400173809,101.335,138.12,138.06,0.054081]
[1765400174006,101.3561,138.09,138.06,0.004081]
[1765400174205,101.4107,138.02,137.95,6.35844662]
[1765400174411,101.4107,138.02,137.92,9.6334]
[1765400174412,101.4217,138.0,137.92,6.35844662]
[1765400174610,162.5709,137.99,137.9,9.46844662]
[1765400174811,162.5709,137.99,137.9,3.11]
[1765400175010,6.5215,137.97,137.9,3.11]
[1765400175214,0.04790461,137.96,137.93,0.05132763]
[1765400175521,101.4141,138.01,137.93,3.16132763]
[1765400175718,101.4082,138.02,137.93,3.16132763]
[1765400176019,101.4285,137.99,137.87,64.49]
[1765400176321,101.4518,137.96,137.87,64.49]
[1765400176512,0.02411799,137.93,137.9,3.16150504]
[1765400176713,61.14,137.97,137.9,3.16150504]
[1765400177019,14.97266799,138.06,137.95,3.11]
[1765400177217,6.5177,138.05,137.96,3.11]
[1765400177411,101.3928,138.04,137.92,101.4791]
[1765400177719,14.97266799,138.06,137.97,0.04783096]
[1765400177919,61.14,138.05,138.0,0.04954679]
[1765400178214,101.3725,138.07,138.0,0.04954679]
[1765400178422,162.5325,138.07,138.0,0.04954679]
[1765400178721,5.59881866,138.05,138.0,0.04954679]
[1765400178912,168.13111866,138.07,138.0,0.04954679]
[1765400179112,101.3918,138.04,138.0,0.04954679]
[1765400179416,106.99061866,138.04,138.0,0.04954679]
[1765400179618,168.13111866,138.07,138.0,0.04954679]
[1765400180018,101.3773,138.06,138.0,0.04954679]
[1765400180217,168.13111866,138.07,138.0,0.04954679]
[1765400180417,6.5178,138.05,138.0,0.04954679]
[1765400180608,106.99221866,138.04,138.0,0.04954679]
[1765400180814,6.5187,138.03,138.0,0.04954679]
[1765400181315,66.75881866,138.07,138.0,0.04954679]
[1765400181519,5.59881866,138.1,138.0,3.15954679]
[1765400181819,106.92001866,138.14,138.04,3.16471867]
[1765400182013,6.5145,138.12,138.08,0.05135311]
[1765400182212,101.3254,138.13,138.08,0.05135311]
[1765400182623,6.515,138.11,138.08,0.05135311]
[1765400182816,101.3414,138.11,138.08,0.05135311]
[1765400183017,101.3254,138.13,138.08,0.05135311]
[1765400183216,106.93881866,138.11,138.08,0.05135311]
[1765400183415,106.93881866,138.11,137.99,165.9538]
[1765400183416,101.3595,138.09,137.99,3.11]
[1765400183834,101.3595,138.09,137.94,107.82034662]
[1765400183835,101.4465,137.97,137.88,3.11]
[1765400184015,5.59881866,137.95,137.88,3.11]
[1765400184217,12.11981866,137.98,137.9,3.11]
[1765400184413,0.04632913,137.95,137.93,0.04606662]
[1765400184627,101.3862,138.05,137.93,3.15606662]
[1765400184924,101.4213,138.0,137.93,3.11]
[1765400185119,107.01241866,138.01,137.93,3.11]
[1765400185427,101.4232,138.0,137.89,3.11]
[1765400185628,101.4237,138.0,137.9,3.11]
[1765400185817,101.4063,138.02,137.93,3.16572428]
[1765400186016,101.4164,138.01,137.96,0.05143756]
[1765400186220,101.4063,138.02,137.96,0.05143756]
[1765400186414,5.59881866,138.04,137.96,0.05143756]
[1765400186727,6.5196,138.01,137.96,3.16143756]
[1765400186913,162.5496,138.05,137.96,0.05143756]
[1765400187113,168.14841866,138.05,137.96,0.05143756]
[1765400187327,101.41,138.02,137.96,3.16143756]
[1765400187622,101.4147,138.01,137.96,0.05143756]
[1765400187928,107.00881866,138.02,137.96,0.05143756]